[Event "Live Chess"]
[Site "Chess.com"]
[Date "2023.09.16"]
[Round "-"]
[White "P3treis"]
[Black "Samueeeseeel"]
[Result "1-0"]
[WhiteElo "915"]
[BlackElo "868"]
[TimeControl "900+5"]
[EndTime "6:19:14 PDT"]
[Termination "P3treis venceu por desistência"]

1. e4 {[%clk 0:15:03.5]} 1... c5 {[%clk 0:15:02.5]} 2. Nf3 {[%clk 0:15:05.2]}
2... Nc6 {[%clk 0:15:05.5]} 3. c3 {[%clk 0:14:59.1]} 3... e5 {[%clk 0:15:00.5]}
4. d4 {[%clk 0:14:58.6]} 4... exd4 {[%clk 0:15:02.1]} 5. cxd4 {[%clk 0:15:03.1]}
5... cxd4 {[%clk 0:15:05.3]} 6. Nxd4 {[%clk 0:15:07]} 6... Nxd4 {[%clk
0:15:09.4]} 7. Qxd4 {[%clk 0:15:10]} 7... Ne7 {[%clk 0:15:13]} 8. Bc4 {[%clk
0:15:10.1]} 8... Qb6 {[%clk 0:14:49.9]} 9. Qe3 {[%clk 0:14:40.3]} 9... Qxe3+
{[%clk 0:14:50.4]} 10. Bxe3 {[%clk 0:14:44.1]} 10... Nc6 {[%clk 0:14:48.6]} 11.
a3 {[%clk 0:14:41.5]} 11... g6 {[%clk 0:14:51.8]} 12. O-O {[%clk 0:14:45.1]}
12... Bg7 {[%clk 0:14:55.2]} 13. Nc3 {[%clk 0:14:32.5]} 13... O-O {[%clk
0:14:56.2]} 14. h3 {[%clk 0:14:18.7]} 14... d6 {[%clk 0:14:42.7]} 15. Rad1
{[%clk 0:14:14.7]} 15... Be5 {[%clk 0:14:33.1]} 16. f4 {[%clk 0:13:42]} 16...
Bg7 {[%clk 0:14:26.3]} 17. Rxd6 {[%clk 0:13:17.7]} 17... Be6 {[%clk 0:14:30]}
18. Bd5 {[%clk 0:12:22.2]} 18... Rad8 {[%clk 0:14:12.5]} 19. e5 {[%clk
0:12:13.9]} 19... Rxd6 {[%clk 0:14:02.5]} 20. exd6 {[%clk 0:12:17.3]} 20... Bxd5
{[%clk 0:13:59.8]} 21. Nxd5 {[%clk 0:12:19.8]} 21... Rd8 {[%clk 0:14:03.3]} 22.
b4 {[%clk 0:11:17.1]} 22... Bd4 {[%clk 0:13:29.9]} 23. Bxd4 {[%clk 0:11:02.3]}
23... Nxd4 {[%clk 0:13:31.6]} 24. Rd1 {[%clk 0:10:37.8]} 24... Ne2+ {[%clk
0:13:31.4]} 25. Kf2 {[%clk 0:10:13.1]} 25... Nc1 {[%clk 0:13:11.9]} 26. Rxc1
{[%clk 0:10:10.4]} 26... Rxd6 {[%clk 0:13:16.4]} 27. Ne7+ {[%clk 0:10:10.4]}
27... Kg7 {[%clk 0:13:19.4]} 28. h4 {[%clk 0:09:58.4]} 28... Rd2+ {[%clk
0:13:22.6]} 29. Ke1 {[%clk 0:09:58.5]} 29... Rxg2 {[%clk 0:13:26.8]} 30. f5
{[%clk 0:10:02]} 30... f6 {[%clk 0:13:26.4]} 31. fxg6 {[%clk 0:10:01.7]} 31...
hxg6 {[%clk 0:13:25.3]} 32. Nd5 {[%clk 0:09:37.8]} 32... Rh2 {[%clk 0:13:27.9]}
33. Rc7+ {[%clk 0:09:39.5]} 33... Kh6 {[%clk 0:13:29.4]} 34. Nxf6 {[%clk
0:09:42.2]} 34... Rxh4 {[%clk 0:13:32.5]} 35. Rxb7 {[%clk 0:09:15.6]} 35... Rf4
{[%clk 0:13:28]} 36. Ng8+ {[%clk 0:09:11]} 36... Kg5 {[%clk 0:13:30.2]} 37. Rxa7
{[%clk 0:09:14.2]} 37... Re4+ {[%clk 0:13:31.2]} 38. Kd2 {[%clk 0:09:15.7]}
38... Re8 {[%clk 0:13:32.1]} 39. Ne7 {[%clk 0:09:14.3]} 39... Rd8+ {[%clk
0:13:34.7]} 40. Kc3 {[%clk 0:09:17.5]} 40... Kf6 {[%clk 0:13:36.6]} 41. Nxg6
{[%clk 0:09:18.3]} 41... Kxg6 {[%clk 0:13:39.9]} 42. b5 {[%clk 0:09:18.6]} 42...
Rb8 {[%clk 0:13:40.1]} 43. Kc4 {[%clk 0:09:21.2]} 43... Kf6 {[%clk 0:13:44]} 44.
Kc5 {[%clk 0:09:24.6]} 44... Ke6 {[%clk 0:13:47.7]} 45. Kc6 {[%clk 0:09:28.4]}
45... Rc8+ {[%clk 0:13:50]} 46. Kb7 {[%clk 0:09:30.1]} 46... Rc5 {[%clk
0:13:52.3]} 47. b6 {[%clk 0:09:33]} 47... Kd6 {[%clk 0:13:50.2]} 48. Kb8 {[%clk
0:09:08.7]} 48... Kc6 {[%clk 0:13:50.2]} 49. b7 {[%clk 0:09:12.2]} 49... Rb5
{[%clk 0:13:53.7]} 50. Ka8 {[%clk 0:09:02.8]} 50... Kc7 {[%clk 0:13:42.9]} 51.
a4 {[%clk 0:08:53.4]} 51... Rb4 {[%clk 0:13:45.9]} 52. a5 {[%clk 0:08:56.8]}
52... Rb5 {[%clk 0:13:49]} 53. a6 {[%clk 0:08:57.4]} 53... Rb6 {[%clk
0:13:51.3]} 54. b8=Q+ {[%clk 0:08:57.3]} 54... Kc6 {[%clk 0:13:49.7]} 55. Qc7+
{[%clk 0:08:54.4]} 55... Kb5 {[%clk 0:13:52]} 56. Qe5+ {[%clk 0:08:48.7]} 56...
Kc6 {[%clk 0:13:55.7]} 57. Qc3+ {[%clk 0:08:44.8]} 57... Kb5 {[%clk 0:13:59.3]}
58. Qa3 {[%clk 0:08:39.2]} 58... Kc6 {[%clk 0:13:58.4]} 59. Rb7 {[%clk
0:08:38.9]} 59... Rxb7 {[%clk 0:13:52.2]} 1-0

[Event "Live Chess"]
[Site "Chess.com"]
[Date "2023.09.16"]
[Round "-"]
[White "fernanndodod"]
[Black "ravypintodiniz"]
[Result "0-1"]
[WhiteElo "1980"]
[BlackElo "2012"]
[TimeControl "900+5"]
[EndTime "6:20:16 PDT"]
[Termination "ravypintodiniz venceu por desistência"]

1. e4 {[%clk 0:15:03.1]} 1... c5 {[%clk 0:14:59.4]} 2. Nf3 {[%clk 0:15:05.5]}
2... d6 {[%clk 0:15:03]} 3. d4 {[%clk 0:15:08.3]} 3... cxd4 {[%clk 0:15:07.9]}
4. Nxd4 {[%clk 0:15:12.9]} 4... Nf6 {[%clk 0:15:05.1]} 5. Nc3 {[%clk 0:15:15.5]}
5... a6 {[%clk 0:15:09.7]} 6. Bg5 {[%clk 0:15:19.1]} 6... e6 {[%clk 0:15:09.3]}
7. Be2 {[%clk 0:15:19.8]} 7... Be7 {[%clk 0:15:13]} 8. O-O {[%clk 0:15:22]} 8...
Qc7 {[%clk 0:15:10.5]} 9. a4 {[%clk 0:15:12.7]} 9... Nc6 {[%clk 0:15:08.8]} 10.
Bf3 {[%clk 0:14:57.9]} 10... O-O {[%clk 0:14:55.8]} 11. Qd2 {[%clk 0:14:48.2]}
11... Ne5 {[%clk 0:14:48.9]} 12. Be2 {[%clk 0:14:41.3]} 12... Nc4 {[%clk
0:14:39.2]} 13. Bxc4 {[%clk 0:14:41.7]} 13... Qxc4 {[%clk 0:14:44.1]} 14. f3
{[%clk 0:14:03.1]} 14... b6 {[%clk 0:11:59]} 15. b3 {[%clk 0:13:25.5]} 15... Qc7
{[%clk 0:11:53.7]} 16. Rac1 {[%clk 0:13:20.4]} 16... Bb7 {[%clk 0:11:48.9]} 17.
Rfe1 {[%clk 0:12:37.3]} 17... Rac8 {[%clk 0:11:39.2]} 18. Nce2 {[%clk
0:12:38.6]} 18... h6 {[%clk 0:11:33.9]} 19. Bxf6 {[%clk 0:12:32.1]} 19... Bxf6
{[%clk 0:11:35.3]} 20. c3 {[%clk 0:12:33.7]} 20... d5 {[%clk 0:11:19.9]} 21.
exd5 {[%clk 0:12:10.3]} 21... Bxd5 {[%clk 0:11:16.8]} 22. c4 {[%clk 0:12:07.6]}
22... Bb7 {[%clk 0:11:13.6]} 23. Qc2 {[%clk 0:11:24.4]} 23... Qc5 {[%clk
0:11:08.5]} 24. Rcd1 {[%clk 0:10:48.9]} 24... e5 {[%clk 0:10:43.2]} 25. b4
{[%clk 0:10:51.6]} 25... Qxc4 {[%clk 0:10:45.1]} 26. Qxc4 {[%clk 0:10:53.9]}
26... Rxc4 {[%clk 0:10:50]} 27. Nf5 {[%clk 0:10:58.3]} 27... Rxb4 {[%clk
0:10:50.4]} 28. Neg3 {[%clk 0:10:50.2]} 28... Bc8 {[%clk 0:10:36.1]} 29. Rd6
{[%clk 0:10:43.6]} 29... Bg5 {[%clk 0:09:58.8]} 30. Rxe5 {[%clk 0:10:27.1]}
30... Bf4 {[%clk 0:09:59.7]} 31. Ne7+ {[%clk 0:10:21.9]} 31... Kh7 {[%clk
0:10:02.3]} 32. Red5 {[%clk 0:09:57]} 32... Bxd6 {[%clk 0:09:56]} 33. Rxd6
{[%clk 0:10:00.1]} 33... Be6 {[%clk 0:09:55.3]} 34. Ne4 {[%clk 0:09:56.1]} 34...
Re8 {[%clk 0:09:43.8]} 35. Nc6 {[%clk 0:09:53.7]} 35... Rxa4 {[%clk 0:09:45.2]}
36. Nd4 {[%clk 0:09:35.6]} 36... b5 {[%clk 0:09:32.8]} 37. Nc5 {[%clk
0:09:33.6]} 37... Ra1+ {[%clk 0:09:36.6]} 38. Kf2 {[%clk 0:09:36.6]} 38... Bc8
{[%clk 0:09:28.9]} 39. h3 {[%clk 0:09:25]} 39... Rd1 {[%clk 0:09:29.4]} 40. Ncb3
{[%clk 0:09:18.6]} 40... Be6 {[%clk 0:09:26.5]} 41. Rxa6 {[%clk 0:09:16.5]}
41... Bc4 {[%clk 0:09:19.2]} 42. Nc5 {[%clk 0:09:13.6]} 42... Rxd4 {[%clk
0:09:21]} 0-1

[Event "Live Chess"]
[Site "Chess.com"]
[Date "2023.09.16"]
[Round "-"]
[White "zezemito921"]
[Black "kslusk"]
[Result "0-1"]
[WhiteElo "909"]
[BlackElo "785"]
[TimeControl "900+5"]
[EndTime "6:21:08 PDT"]
[Termination "kslusk venceu por desistência"]

1. e4 {[%clk 0:15:02.6]} 1... e6 {[%clk 0:14:59.8]} 2. d4 {[%clk 0:15:04]} 2...
d5 {[%clk 0:15:03.4]} 3. e5 {[%clk 0:15:06.4]} 3... c5 {[%clk 0:15:07.1]} 4. c3
{[%clk 0:15:05.7]} 4... Nc6 {[%clk 0:15:08.4]} 5. Nf3 {[%clk 0:15:06.5]} 5...
Qb6 {[%clk 0:15:10.8]} 6. Be3 {[%clk 0:14:52.9]} 6... Qxb2 {[%clk 0:15:12.5]} 7.
Na3 {[%clk 0:14:51.5]} 7... Qxa3 {[%clk 0:15:14.9]} 8. dxc5 {[%clk 0:14:43.6]}
8... Qxc3+ {[%clk 0:15:07.1]} 9. Bd2 {[%clk 0:14:44.4]} 9... Qxc5 {[%clk
0:15:10.3]} 10. Be2 {[%clk 0:14:41.5]} 10... f6 {[%clk 0:15:09.1]} 11. O-O
{[%clk 0:14:44.4]} 11... fxe5 {[%clk 0:15:07.4]} 12. Rc1 {[%clk 0:14:44.5]}
12... Qd6 {[%clk 0:15:09.9]} 13. Bb5 {[%clk 0:14:41.1]} 13... Bd7 {[%clk
0:15:12.7]} 14. Bxc6 {[%clk 0:14:43.4]} 14... Bxc6 {[%clk 0:15:16.1]} 15. Re1
{[%clk 0:14:41.9]} 15... Nf6 {[%clk 0:15:13.7]} 16. Nxe5 {[%clk 0:14:40.7]}
16... Be7 {[%clk 0:15:03.7]} 17. Rc2 {[%clk 0:13:45.7]} 17... Rc8 {[%clk
0:15:00.6]} 18. Qb1 {[%clk 0:13:30.3]} 18... Ne4 {[%clk 0:14:48]} 19. Nf3 {[%clk
0:13:20.4]} 19... O-O {[%clk 0:14:45.9]} 20. Bb4 {[%clk 0:13:19.8]} 20... Qd7
{[%clk 0:14:44.7]} 21. Bxe7 {[%clk 0:13:06.7]} 21... Qxe7 {[%clk 0:14:46.6]} 22.
Ne5 {[%clk 0:13:01.8]} 22... Qf6 {[%clk 0:14:35.9]} 23. Nxc6 {[%clk 0:12:47]}
23... Rxc6 {[%clk 0:14:38.3]} 24. Rxc6 {[%clk 0:12:45.7]} 24... bxc6 {[%clk
0:14:23]} 25. f3 {[%clk 0:12:45.7]} 25... Qd4+ {[%clk 0:14:19.9]} 26. Kh1 {[%clk
0:12:42.7]} 26... Nf2+ {[%clk 0:14:22.4]} 27. Kg1 {[%clk 0:12:40.9]} 27... Nd3+
{[%clk 0:14:24.9]} 28. Kh1 {[%clk 0:12:34.3]} 28... Nxe1 {[%clk 0:14:27.5]} 29.
Qxe1 {[%clk 0:12:37.7]} 29... Kf7 {[%clk 0:14:15.9]} 30. Qa5 {[%clk 0:12:36.4]}
30... Qb6 {[%clk 0:14:17]} 31. Qe1 {[%clk 0:12:36.4]} 31... Rb8 {[%clk 0:14:18]}
0-1

[Event "Live Chess"]
[Site "Chess.com"]
[Date "2023.09.16"]
[Round "-"]
[White "danilo655"]
[Black "AlphaKaua10"]
[Result "0-1"]
[WhiteElo "720"]
[BlackElo "1157"]
[TimeControl "900+5"]
[EndTime "6:21:25 PDT"]
[Termination "AlphaKaua10 venceu por desistência"]

1. e4 {[%clk 0:15:00.9]} 1... c5 {[%clk 0:15:01.4]} 2. f4 {[%clk 0:14:57.8]}
2... g6 {[%clk 0:15:05.2]} 3. Nf3 {[%clk 0:15:00]} 3... Bg7 {[%clk 0:15:09]} 4.
Nc3 {[%clk 0:14:59.3]} 4... b6 {[%clk 0:15:08.6]} 5. Bc4 {[%clk 0:14:52.3]} 5...
Nf6 {[%clk 0:15:08.9]} 6. Qe2 {[%clk 0:14:10.7]} 6... O-O {[%clk 0:15:10]} 7. e5
{[%clk 0:14:10.5]} 7... Nh5 {[%clk 0:15:13.8]} 8. a3 {[%clk 0:13:28.8]} 8...
Nxf4 {[%clk 0:15:16.6]} 9. Qe4 {[%clk 0:13:19.3]} 9... Nxg2+ {[%clk 0:15:14.3]}
10. Kf1 {[%clk 0:13:18.8]} 10... e6 {[%clk 0:15:04.6]} 11. Kxg2 {[%clk 0:13:08]}
11... d5 {[%clk 0:15:08.4]} 12. Qe2 {[%clk 0:13:04.4]} 12... dxc4 {[%clk
0:15:09.8]} 13. d3 {[%clk 0:12:04.7]} 13... Bb7 {[%clk 0:15:11.2]} 14. Kf2
{[%clk 0:11:49]} 14... cxd3 {[%clk 0:15:12.3]} 15. cxd3 {[%clk 0:11:47.1]} 15...
f6 {[%clk 0:15:11.3]} 16. exf6 {[%clk 0:10:50.5]} 16... Qxf6 {[%clk 0:15:12.8]}
17. Ke1 {[%clk 0:10:36.8]} 17... Bxf3 {[%clk 0:15:14.8]} 18. Ne4 {[%clk
0:09:24.6]} 18... Bxe2 {[%clk 0:15:15.1]} 19. Nxf6+ {[%clk 0:09:26.2]} 19...
Rxf6 {[%clk 0:15:18.6]} 20. Kxe2 {[%clk 0:09:21.8]} 20... Nc6 {[%clk 0:15:22]}
21. Bd2 {[%clk 0:08:48]} 21... Nd4+ {[%clk 0:15:24.1]} 22. Kd1 {[%clk
0:08:47.6]} 22... Raf8 {[%clk 0:15:23.7]} 23. Be1 {[%clk 0:08:12.3]} 23... Rf1
{[%clk 0:15:20.2]} 24. Rxf1 {[%clk 0:07:59.9]} 24... Rxf1 {[%clk 0:15:22.9]} 25.
Kd2 {[%clk 0:07:48.4]} 25... Bh6+ {[%clk 0:15:24.1]} 0-1

[Event "Live Chess"]
[Site "Chess.com"]
[Date "2023.09.16"]
[Round "-"]
[White "RickBrasil"]
[Black "icarohm"]
[Result "0-1"]
[WhiteElo "1867"]
[BlackElo "1893"]
[TimeControl "900+5"]
[EndTime "6:21:42 PDT"]
[Termination "icarohm venceu por desistência"]

1. e4 {[%clk 0:15:02.7]} 1... e6 {[%clk 0:15:03.3]} 2. d4 {[%clk 0:14:59.9]}
2... d5 {[%clk 0:15:06.9]} 3. exd5 {[%clk 0:15:04.5]} 3... exd5 {[%clk
0:15:10.5]} 4. Bd3 {[%clk 0:15:09.2]} 4... Bd6 {[%clk 0:15:10.2]} 5. Ne2 {[%clk
0:14:51]} 5... Nf6 {[%clk 0:15:11.7]} 6. O-O {[%clk 0:14:49.6]} 6... O-O {[%clk
0:15:08.8]} 7. h3 {[%clk 0:14:04.8]} 7... b6 {[%clk 0:15:03.7]} 8. Bf4 {[%clk
0:14:07.1]} 8... Bb7 {[%clk 0:15:03.3]} 9. c3 {[%clk 0:13:59.5]} 9... c5 {[%clk
0:15:06.2]} 10. Bxd6 {[%clk 0:13:42.6]} 10... Qxd6 {[%clk 0:15:07.8]} 11. Nd2
{[%clk 0:13:45.4]} 11... Nbd7 {[%clk 0:15:05.7]} 12. Nf3 {[%clk 0:13:03.6]}
12... Rfe8 {[%clk 0:14:50.6]} 13. Re1 {[%clk 0:13:06.8]} 13... Rac8 {[%clk
0:13:50.5]} 14. a3 {[%clk 0:12:29.2]} 14... Nf8 {[%clk 0:13:39.7]} 15. b4 {[%clk
0:11:21.7]} 15... c4 {[%clk 0:13:17.7]} 16. Bc2 {[%clk 0:11:04.5]} 16... Ne4
{[%clk 0:13:17.9]} 17. Nd2 {[%clk 0:10:44.6]} 17... Re6 {[%clk 0:11:49]} 18. f3
{[%clk 0:10:04.3]} 18... Ng3 {[%clk 0:11:24.5]} 19. Nxg3 {[%clk 0:10:00.5]}
19... Qxg3 {[%clk 0:11:24.1]} 20. Rxe6 {[%clk 0:10:03.4]} 20... Nxe6 {[%clk
0:11:27.7]} 21. Qe1 {[%clk 0:10:04.5]} 21... Qf4 {[%clk 0:11:04.3]} 22. Nf1
{[%clk 0:09:46.2]} 22... Re8 {[%clk 0:10:49.5]} 23. Qg3 {[%clk 0:09:26.9]} 23...
Nxd4 {[%clk 0:10:11.9]} 24. Re1 {[%clk 0:06:47.8]} 24... Rxe1 {[%clk 0:09:33.2]}
25. Qxe1 {[%clk 0:06:47.8]} 25... Ne6 {[%clk 0:09:22.6]} 26. g3 {[%clk
0:05:41.8]} 26... Qxf3 {[%clk 0:09:06.2]} 27. Qe5 {[%clk 0:05:46]} 27... d4
{[%clk 0:08:36.5]} 0-1

[Event "Live Chess"]
[Site "Chess.com"]
[Date "2023.09.16"]
[Round "-"]
[White "Thiago1451"]
[Black "maylso"]
[Result "0-1"]
[WhiteElo "571"]
[BlackElo "1433"]
[TimeControl "900+5"]
[EndTime "6:21:53 PDT"]
[Termination "maylso venceu por xeque-mate"]

1. c4 {[%clk 0:15:02.7]} 1... e5 {[%clk 0:14:59.8]} 2. Nc3 {[%clk 0:15:04.8]}
2... Nf6 {[%clk 0:15:02]} 3. Nf3 {[%clk 0:15:04.8]} 3... Nc6 {[%clk 0:15:04.4]}
4. d4 {[%clk 0:15:08.5]} 4... exd4 {[%clk 0:14:55.2]} 5. Nxd4 {[%clk 0:15:11.9]}
5... Bc5 {[%clk 0:14:54.8]} 6. Nxc6 {[%clk 0:15:11.9]} 6... bxc6 {[%clk
0:14:59.7]} 7. g3 {[%clk 0:15:15.5]} 7... O-O {[%clk 0:14:54.7]} 8. Bg2 {[%clk
0:15:19.4]} 8... d5 {[%clk 0:14:44.6]} 9. cxd5 {[%clk 0:15:23]} 9... cxd5 {[%clk
0:14:48.4]} 10. O-O {[%clk 0:15:20.9]} 10... d4 {[%clk 0:14:43.1]} 11. Nb5
{[%clk 0:15:20.4]} 11... Nd5 {[%clk 0:14:17.1]} 12. Nxd4 {[%clk 0:15:18.5]}
12... Bb7 {[%clk 0:14:08.9]} 13. Nf5 {[%clk 0:15:10.8]} 13... Re8 {[%clk
0:13:47.4]} 14. a3 {[%clk 0:14:52.8]} 14... c6 {[%clk 0:13:41.4]} 15. b4 {[%clk
0:14:56]} 15... Bb6 {[%clk 0:13:34.9]} 16. Bb2 {[%clk 0:14:56]} 16... Ba6 {[%clk
0:13:16.4]} 17. Bd4 {[%clk 0:14:58.4]} 17... Bxe2 {[%clk 0:13:13.6]} 18. Qd2
{[%clk 0:14:49.5]} 18... Bxf1 {[%clk 0:13:16.3]} 19. Rxf1 {[%clk 0:14:54.4]}
19... Bxd4 {[%clk 0:13:14]} 20. Qxd4 {[%clk 0:14:58.2]} 20... f6 {[%clk
0:13:05.3]} 21. Ne3 {[%clk 0:14:53.1]} 21... Nxe3 {[%clk 0:13:02.3]} 22. fxe3
{[%clk 0:14:57.3]} 22... Qxd4 {[%clk 0:13:00]} 23. exd4 {[%clk 0:15:00.7]} 23...
Rad8 {[%clk 0:12:58.1]} 24. Bxc6 {[%clk 0:15:01]} 24... Re6 {[%clk 0:13:01]} 25.
d5 {[%clk 0:14:54.6]} 25... Re3 {[%clk 0:12:58.8]} 26. a4 {[%clk 0:14:50.8]}
26... Re4 {[%clk 0:12:57.2]} 27. b5 {[%clk 0:14:48.6]} 27... Rxa4 {[%clk
0:13:00.1]} 28. Rb1 {[%clk 0:14:50.5]} 28... Rb8 {[%clk 0:12:37.9]} 29. d6
{[%clk 0:14:53]} 29... Kf8 {[%clk 0:12:37.8]} 30. d7 {[%clk 0:14:56.9]} 30...
Ke7 {[%clk 0:12:38.3]} 31. Re1+ {[%clk 0:15:00.5]} 31... Kd6 {[%clk 0:12:42.1]}
32. Rd1+ {[%clk 0:15:02.6]} 32... Kc7 {[%clk 0:12:45.9]} 33. Re1 {[%clk
0:15:04.1]} 33... Rd4 {[%clk 0:12:40.9]} 34. Re7 {[%clk 0:15:04.6]} 34... Kb6
{[%clk 0:12:38.6]} 35. Rxg7 {[%clk 0:15:01.3]} 35... a6 {[%clk 0:12:34]} 36.
bxa6 {[%clk 0:15:02.6]} 36... Kxc6 {[%clk 0:12:36.1]} 37. Rxh7 {[%clk
0:15:05.2]} 37... Rxd7 {[%clk 0:12:38.7]} 38. Rxd7 {[%clk 0:15:08.4]} 38... Kxd7
{[%clk 0:12:42.2]} 39. a7 {[%clk 0:15:12]} 39... Ra8 {[%clk 0:12:46.7]} 40. Kg2
{[%clk 0:15:16.4]} 40... Rxa7 {[%clk 0:12:51.2]} 41. Kh3 {[%clk 0:15:20.7]}
41... Ra5 {[%clk 0:12:55]} 42. Kg4 {[%clk 0:15:25.1]} 42... Ke6 {[%clk
0:12:59.7]} 43. Kf4 {[%clk 0:15:29.2]} 43... Rf5+ {[%clk 0:13:01.1]} 44. Ke4
{[%clk 0:15:32.1]} 44... Rh5 {[%clk 0:12:59.3]} 45. g4 {[%clk 0:15:35.1]} 45...
Rxh2 {[%clk 0:13:02.4]} 46. Kf4 {[%clk 0:15:38]} 46... Rf2+ {[%clk 0:13:04.2]}
47. Ke4 {[%clk 0:15:40.9]} 47... Ra2 {[%clk 0:13:07.3]} 48. g5 {[%clk
0:15:44.2]} 48... fxg5 {[%clk 0:13:10.7]} 49. Kf3 {[%clk 0:15:47.7]} 49... Ra8
{[%clk 0:13:12.2]} 50. Kg4 {[%clk 0:15:52.1]} 50... Ra5 {[%clk 0:13:13.7]} 51.
Kf3 {[%clk 0:15:54.9]} 51... Kf6 {[%clk 0:13:18.3]} 52. Kg3 {[%clk 0:15:59]}
52... Kf5 {[%clk 0:13:22.5]} 53. Kf3 {[%clk 0:16:02.8]} 53... Ra3+ {[%clk
0:13:26.1]} 54. Kg2 {[%clk 0:16:05.9]} 54... Kf4 {[%clk 0:13:30.1]} 55. Kf2
{[%clk 0:16:10.1]} 55... Ra2+ {[%clk 0:13:33.4]} 56. Ke1 {[%clk 0:16:13.3]}
56... Ke3 {[%clk 0:13:37.6]} 57. Kf1 {[%clk 0:16:17.5]} 57... Kf3 {[%clk
0:13:35.5]} 58. Kg1 {[%clk 0:16:20.8]} 58... g4 {[%clk 0:13:39.2]} 59. Kh1
{[%clk 0:16:22.2]} 59... g3 {[%clk 0:13:42.1]} 60. Kg1 {[%clk 0:16:26.6]} 60...
Ra1# {[%clk 0:13:46.5]} 0-1

[Event "Live Chess"]
[Site "Chess.com"]
[Date "2023.09.16"]
[Round "-"]
[White "NavarroChess09"]
[Black "Edson_Zarnelli"]
[Result "1-0"]
[WhiteElo "1322"]
[BlackElo "752"]
[TimeControl "900+5"]
[EndTime "6:22:24 PDT"]
[Termination "NavarroChess09 venceu por desistência"]

1. d4 {[%clk 0:15:00.2]} 1... d5 {[%clk 0:15:03.1]} 2. Nc3 {[%clk 0:15:02.9]}
2... Nf6 {[%clk 0:15:04.8]} 3. Nf3 {[%clk 0:15:06.6]} 3... Nc6 {[%clk
0:15:05.9]} 4. Bg5 {[%clk 0:15:09.5]} 4... e6 {[%clk 0:14:51.4]} 5. e3 {[%clk
0:15:12.7]} 5... Be7 {[%clk 0:14:54.5]} 6. Ne5 {[%clk 0:15:11.9]} 6... Nxe5
{[%clk 0:14:48.4]} 7. dxe5 {[%clk 0:15:15]} 7... Ne4 {[%clk 0:14:51.4]} 8. Nxe4
{[%clk 0:15:17.6]} 8... dxe4 {[%clk 0:14:50.8]} 9. Qxd8+ {[%clk 0:15:15.8]} 9...
Bxd8 {[%clk 0:14:49.9]} 10. Bxd8 {[%clk 0:15:13.1]} 10... Kxd8 {[%clk
0:14:51.7]} 11. Rd1+ {[%clk 0:15:17.7]} 11... Ke7 {[%clk 0:14:54.1]} 12. Bc4
{[%clk 0:15:19.8]} 12... Rd8 {[%clk 0:14:55]} 13. O-O {[%clk 0:15:22.9]} 13...
Bd7 {[%clk 0:14:47.5]} 14. f3 {[%clk 0:15:10.7]} 14... a6 {[%clk 0:14:43.6]} 15.
Bb3 {[%clk 0:15:10.7]} 15... exf3 {[%clk 0:14:45.9]} 16. Rxf3 {[%clk 0:15:13.3]}
16... Bc6 {[%clk 0:14:45.8]} 17. Rxd8 {[%clk 0:14:59.8]} 17... Rxd8 {[%clk
0:14:46.6]} 18. Rf1 {[%clk 0:15:03.2]} 18... Bb5 {[%clk 0:14:48.6]} 19. c4
{[%clk 0:15:02.6]} 19... Bc6 {[%clk 0:14:44.2]} 20. g3 {[%clk 0:14:50.7]} 20...
Rd2 {[%clk 0:14:45.5]} 21. Rf2 {[%clk 0:14:51.4]} 21... Rd3 {[%clk 0:14:38]} 22.
Re2 {[%clk 0:14:48]} 22... Bf3 {[%clk 0:14:35.8]} 23. Re1 {[%clk 0:14:40.2]}
23... b5 {[%clk 0:14:25.1]} 24. Kf2 {[%clk 0:14:40.9]} 24... bxc4 {[%clk
0:14:05.1]} 25. Bxc4 {[%clk 0:14:36.3]} 25... Rd2+ {[%clk 0:13:17.7]} 26. Kxf3
{[%clk 0:14:38.3]} 26... Rxb2 {[%clk 0:13:18.3]} 27. h4 {[%clk 0:14:41.2]} 27...
Rc2 {[%clk 0:13:17]} 28. Bxa6 {[%clk 0:14:43.3]} 28... Rxa2 {[%clk 0:13:17.9]}
29. Bd3 {[%clk 0:14:42.4]} 29... Ra5 {[%clk 0:13:12]} 30. Rc1 {[%clk 0:14:43.4]}
30... Rd5 {[%clk 0:13:11.2]} 31. Rxc7+ {[%clk 0:14:45.1]} 31... Kd8 {[%clk
0:13:12.3]} 32. Rxf7 {[%clk 0:14:46.9]} 32... Rxd3 {[%clk 0:13:14.8]} 33. Rxg7
{[%clk 0:14:46.9]} 33... Rd7 {[%clk 0:13:08.9]} 34. Rxd7+ {[%clk 0:14:45.6]}
34... Kxd7 {[%clk 0:13:13.8]} 35. g4 {[%clk 0:14:48.2]} 35... Ke7 {[%clk
0:13:16.7]} 36. g5 {[%clk 0:14:52]} 36... Kf7 {[%clk 0:13:20.7]} 37. h5 {[%clk
0:14:55.9]} 37... Kg7 {[%clk 0:13:24.3]} 38. Kg4 {[%clk 0:14:58.8]} 38... h6
{[%clk 0:13:28.4]} 39. g6 {[%clk 0:14:57.8]} 39... Kf8 {[%clk 0:13:27.5]} 40. e4
{[%clk 0:15:00.2]} 40... Kg7 {[%clk 0:13:29.6]} 41. Kf4 {[%clk 0:15:02.9]} 41...
Kf8 {[%clk 0:13:25.5]} 42. Ke3 {[%clk 0:15:05.3]} 42... Ke7 {[%clk 0:13:27]} 43.
Kd4 {[%clk 0:15:07.5]} 43... Kd7 {[%clk 0:13:30.6]} 44. g7 {[%clk 0:15:10.2]}
44... Ke7 {[%clk 0:13:32.6]} 45. g8=Q {[%clk 0:15:15.1]} 45... Kd7 {[%clk
0:13:35.1]} 46. Qf7+ {[%clk 0:15:16.7]} 46... Kd8 {[%clk 0:13:38.5]} 47. Qxe6
{[%clk 0:15:17.2]} 1-0

[Event "Live Chess"]
[Site "Chess.com"]
[Date "2023.09.16"]
[Round "-"]
[White "zxsimon"]
[Black "augustodemoraisrocha"]
[Result "1/2-1/2"]
[WhiteElo "1483"]
[BlackElo "1468"]
[TimeControl "900+5"]
[EndTime "6:22:25 PDT"]
[Termination "Partida empatada por acordo"]

1. e4 {[%clk 0:15:02.4]} 1... e5 {[%clk 0:15:03.9]} 2. Nf3 {[%clk 0:15:05.8]}
2... Nc6 {[%clk 0:15:08.5]} 3. Bc4 {[%clk 0:15:09.2]} 3... h6 {[%clk 0:15:11.7]}
4. d3 {[%clk 0:15:12.7]} 4... Nf6 {[%clk 0:15:15.5]} 5. Nc3 {[%clk 0:15:16.1]}
5... Bb4 {[%clk 0:15:17.6]} 6. Bd2 {[%clk 0:15:18.9]} 6... Bxc3 {[%clk
0:15:18.7]} 7. Bxc3 {[%clk 0:15:22.9]} 7... d6 {[%clk 0:15:21.3]} 8. h3 {[%clk
0:15:26.4]} 8... Qe7 {[%clk 0:15:23.6]} 9. Qd2 {[%clk 0:15:26]} 9... Be6 {[%clk
0:15:27.7]} 10. Bb3 {[%clk 0:15:23.6]} 10... Bxb3 {[%clk 0:15:30.2]} 11. axb3
{[%clk 0:15:28.5]} 11... a6 {[%clk 0:15:34.2]} 12. O-O {[%clk 0:15:26.6]} 12...
d5 {[%clk 0:15:25.4]} 13. Rfe1 {[%clk 0:15:26.1]} 13... dxe4 {[%clk 0:15:15.1]}
14. dxe4 {[%clk 0:15:19.6]} 14... Nd7 {[%clk 0:15:06.1]} 15. b4 {[%clk
0:15:21.3]} 15... O-O {[%clk 0:15:02.5]} 16. Red1 {[%clk 0:15:09.1]} 16... Rfd8
{[%clk 0:15:01.7]} 17. Re1 {[%clk 0:15:06.4]} 17... Qf6 {[%clk 0:14:52.7]} 18.
Qe3 {[%clk 0:14:58.7]} 18... Nb6 {[%clk 0:14:35.7]} 19. b3 {[%clk 0:14:49]}
19... Rd7 {[%clk 0:14:28]} 20. Nd2 {[%clk 0:14:22.9]} 20... Nc8 {[%clk
0:14:00.8]} 21. Nc4 {[%clk 0:14:21.1]} 21... Nd6 {[%clk 0:13:48.8]} 22. Nxd6
{[%clk 0:14:11.9]} 22... Rxd6 {[%clk 0:13:53.7]} 23. b5 {[%clk 0:14:13.9]} 23...
Nd4 {[%clk 0:13:47.3]} 24. Bxd4 {[%clk 0:14:11.1]} 24... Rxd4 {[%clk 0:13:50.3]}
25. bxa6 {[%clk 0:14:12.4]} 25... Rxa6 {[%clk 0:13:51.4]} 26. Rxa6 {[%clk
0:14:02.8]} 26... Qxa6 {[%clk 0:13:53.2]} 1/2-1/2